bitfinex/quotes_BTCUSD_20220109
["timestamp","ask_amount","ask_price","bid_price","bid_amount"]
[1641767573675,1.18136581,42412.0,42411.0,0.00031565]
[1641767575624,1.19436581,42412.0,42411.0,0.00031565]
[1641767576819,1.18136581,42412.0,42411.0,0.00031565]
[1641767577221,1.22836581,42412.0,42411.0,0.00031565]
[1641767577618,1.24336581,42412.0,42411.0,0.00031565]
[1641767578881,1.22836581,42412.0,42411.0,0.00031565]
[1641767579278,3.66025394,42408.0,42407.0,0.00618017]
[1641767579478,3.66025394,42408.0,42398.0,0.01361319]
[1641767579678,0.29224893,42407.0,42398.0,0.01361319]
[1641767581678,0.31124893,42407.0,42398.0,0.01361319]
[1641767581879,0.41124893,42407.0,42398.0,0.01361319]
[1641767582278,0.00010129,42405.0,42398.0,0.01361319]
[1641767582523,0.07122748,42405.0,42398.0,0.01361319]
[1641767582724,0.2811358,42404.0,42398.0,0.01361319]
[1641767583123,0.2811358,42404.0,42399.0,0.0002763]
[1641767583324,0.99323125,42404.0,42399.0,0.00048766]
[1641767583528,1.09323125,42404.0,42399.0,0.00048766]
[1641767583826,1.12723125,42404.0,42399.0,0.00048766]
[1641767584625,1.12723125,42404.0,42392.0,0.05046643]
[1641767585225,1.12723125,42404.0,42391.0,0.0053214]
[1641767585427,1.12704446,42404.0,42391.0,0.0053214]
[1641767585625,1.12504446,42404.0,42391.0,0.0053214]
[1641767586277,0.00126355,42403.0,42391.0,0.00411]
[1641767587277,0.058975,42402.0,42391.0,0.00411]
[1641767587478,1.0148876,42401.0,42391.0,0.00411]
[1641767587676,1.1148876,42401.0,42391.0,0.00411]
[1641767587878,1.1648876,42401.0,42394.0,0.00021332]
[1641767588078,0.71190866,42400.0,42394.0,0.00021332]
[1641767588583,0.81190866,42400.0,42394.0,0.00021332]
[1641767588779,0.81190866,42400.0,42391.0,0.00411]
[1641767588980,0.81190866,42400.0,42395.0,0.00021332]
[1641767589778,0.83290866,42400.0,42395.0,0.00021332]
[1641767591237,0.71190866,42398.0,42395.0,0.00021332]
[1641767591430,0.04825214,42399.0,42395.0,0.00021332]
[1641767591431,0.71190866,42396.0,42395.0,0.00021332]
[1641767591631,1.08242374,42396.0,42395.0,0.00021332]
[1641767592031,1.08242374,42396.0,42391.0,0.00411]
[1641767592332,0.81190866,42396.0,42393.0,0.00020547]
[1641767592932,0.71318144,42394.0,42393.0,0.00020547]
[1641767593134,0.81318144,42394.0,42391.0,0.00411]
[1641767593333,0.81318144,42394.0,42392.0,0.00020561]
[1641767593781,0.98810351,42393.0,42392.0,0.00020561]
[1641767593977,1.03810351,42393.0,42392.0,0.00020561]
[1641767594178,0.86190866,42393.0,42391.0,0.00411]
[1641767594478,0.15,42393.0,42391.0,0.00411]
[1641767595177,1.399,42394.0,42391.0,0.00411]
[1641767595780,0.022,42393.0,42391.0,0.00411]
[1641767596181,0.022,42393.0,42385.0,0.41849002]
[1641767596581,0.022,42393.0,42390.0,0.00020577]
[1641767596582,1.249,42392.0,42390.0,0.00020577]
[1641767596780,1.299,42392.0,42390.0,0.00020577]
[1641767596984,1.399,42392.0,42390.0,0.00020577]
[1641767597527,1.399,42392.0,42385.0,0.41849002]
[1641767597728,1.42,42392.0,42385.0,0.41849002]
[1641767597928,1.249,42390.0,42385.0,0.41849002]
[1641767598126,1.349,42390.0,42385.0,0.41849002]
[1641767598728,1.396,42390.0,42385.0,0.41849002]
[1641767598930,1.249,42388.0,42385.0,0.41849002]
[1641767599830,1.275,42388.0,42385.0,0.41849002]
[1641767600030,1.425,42388.0,42385.0,0.41349002]
[1641767600234,1.25024411,42386.0,42385.0,0.41349002]
[1641767600431,1.30024411,42386.0,42385.0,0.41349002]
[1641767600634,1.40024411,42386.0,42385.0,0.41349002]
[1641767601682,1.46824411,42386.0,42385.0,0.41349002]
[1641767602884,1.46824411,42386.0,42384.0,0.00011]
[1641767603085,1.83599613,42385.0,42384.0,0.00011]
[1641767603289,1.88299613,42385.0,42384.0,0.00011]
[1641767603485,2.805991,42385.0,42384.0,0.00011]
[1641767603684,2.822991,42385.0,42384.0,0.00011]
[1641767604088,2.822991,42385.0,42382.0,0.02011]
[1641767604284,1.249,42383.0,42382.0,0.02031983]
[1641767604483,1.296,42383.0,42382.0,0.02031983]
[1641767604684,1.396,42383.0,42382.0,0.02031983]
[1641767605330,0.2,42382.0,42379.0,0.00011]
[1641767605533,0.001238,42378.0,42377.0,0.00011]
[1641767605728,1.497238,42378.0,42377.0,0.00011]
[1641767606128,1.647238,42378.0,42377.0,0.00011]
[1641767606735,2.147238,42378.0,42377.0,0.00011]
[1641767606936,2.147238,42378.0,42369.0,0.00022]
[1641767606937,2.97023287,42378.0,42369.0,0.00022]
[1641767607132,0.059022,42372.0,42359.0,0.00041176]
[1641767607332,0.00126029,42368.0,42359.0,0.00041176]
[1641767607533,0.20126029,42368.0,42359.0,0.00041176]
[1641767607731,1.5566672,42367.0,42359.0,0.00041176]
[1641767608331,1.25026029,42368.0,42359.0,0.00041176]
[1641767608533,1.25026029,42368.0,42355.0,0.00033]
[1641767608534,0.1179742,42367.0,42355.0,0.00033]
[1641767608780,1.249,42366.0,42352.0,0.00032607]
[1641767608981,1.299,42366.0,42352.0,0.00032607]
[1641767609181,1.249,42365.0,42349.0,0.00044]
[1641767609388,1.249,42363.0,42352.0,0.059024]
[1641767609579,1.25554714,42363.0,42352.0,0.059024]
[1641767609780,1.25554714,42363.0,42355.0,0.00021342]
[1641767609979,0.26739603,42362.0,42355.0,0.00021342]
[1641767610180,1.52197919,42362.0,42355.0,0.00021342]
[1641767610380,0.00654714,42360.0,42355.0,0.00021342]
[1641767610780,0.00654714,42360.0,42347.0,1.40683]
[1641767610781,0.00654714,42360.0,42347.0,1.46586]
[1641767610983,1.62326942,42362.0,42355.0,0.00021342]
[1641767611381,1.52669837,42361.0,42355.0,0.00021342]
[1641767612085,1.52669837,42361.0,42356.0,0.00021342]
[1641767612925,1.62669837,42361.0,42356.0,0.00021342]
[1641767613226,1.52669837,42361.0,42356.0,0.00021342]
[1641767613725,1.54769837,42361.0,42356.0,0.00021342]
[1641767613925,0.00654714,42357.0,42356.0,0.00021342]
[1641767614125,0.00654714,42357.0,42348.0,0.14345285]
[1641767614325,0.00654714,42357.0,42356.0,0.00020556]
[1641767614925,0.00121272,42358.0,42356.0,0.00020556]
[1641767615126,0.00654714,42357.0,42356.0,0.00020556]
[1641767615327,0.00654714,42357.0,42354.0,0.00020556]
[1641767615726,1.249,42356.0,42354.0,0.00020556]
[1641767615925,0.02554714,42357.0,42354.0,0.00020556]
[1641767616170,1.249,42356.0,42354.0,0.00020556]
[1641767616376,1.249,42356.0,42348.0,0.109028]
[1641767616571,1.249,42356.0,42353.0,0.00020556]
[1641767617473,1.249,42356.0,42348.0,0.109028]
[1641767617672,1.249,42356.0,42352.0,0.00020557]
[1641767617874,1.277,42356.0,42352.0,0.00020557]
[1641767618071,1.277,42356.0,42348.0,0.10423357]
[1641767618472,0.028,42356.0,42348.0,0.10423357]
[1641767618676,0.028,42356.0,42351.0,0.059023]
[1641767619074,0.29251295,42362.0,42351.0,0.059023]
[1641767619274,0.29251295,42362.0,42353.0,0.50683714]
[1641767619675,1.249,42361.0,42353.0,0.50683714]
[1641767620131,0.00654714,42358.0,42353.0,0.50683714]
[1641767621627,1.25554714,42358.0,42353.0,0.50683714]
[1641767621826,1.27854714,42358.0,42353.0,0.50683714]
[1641767623027,1.25554714,42358.0,42353.0,0.50683714]
[1641767623428,0.1,42361.0,42353.0,0.50683714]
[1641767623676,0.00654714,42363.0,42353.0,0.50683714]
[1641767623877,0.023,42358.0,42353.0,0.50683714]
[1641767625178,0.00654714,42356.0,42353.0,0.50683714]
[1641767625779,0.02454714,42356.0,42353.0,0.50683714]
[1641767625978,1.249,42355.0,42353.0,0.50683714]
[1641767626981,0.00654714,42356.0,42353.0,0.50683714]
[1641767627432,0.00654714,42359.0,42353.0,0.50683714]
[1641767627831,0.018,42356.0,42353.0,0.50683714]
[1641767628434,0.00654714,42355.0,42353.0,0.50683714]
[1641767628831,0.018,42356.0,42353.0,0.50683714]
[1641767629031,0.00654714,42355.0,42353.0,0.50683714]
[1641767629431,0.00127494,42360.0,42353.0,0.50683714]
[1641767629631,0.2760114,42360.0,42353.0,0.50683714]
[1641767629833,0.016,42355.0,42353.0,0.50683714]
[1641767631032,0.00654714,42357.0,42353.0,0.50683714]
[1641767631887,0.02354714,42357.0,42353.0,0.50683714]
[1641767633187,0.00654714,42357.0,42353.0,0.50683714]
[1641767633887,0.02154714,42357.0,42353.0,0.50683714]
[1641767634489,0.00654714,42354.0,42353.0,0.50683714]
[1641767635927,0.01954714,42354.0,42353.0,0.50683714]
[1641767636930,0.013,42354.0,42353.0,0.50683714]
[1641767637129,0.00654714,42357.0,42353.0,0.50683714]
[1641767637929,0.02054714,42357.0,42353.0,0.50683714]
[1641767638780,0.02054714,42357.0,42353.0,0.49183714]
[1641767639080,0.00654714,42357.0,42353.0,0.49183714]
[1641767639981,0.02054714,42357.0,42353.0,0.49183714]
[1641767641183,0.00654714,42357.0,42353.0,0.49183714]
[1641767641384,1.399,42358.0,42353.0,0.49183714]
[1641767641587,0.00654714,42355.0,42353.0,0.49183714]
[1641767643837,0.02454714,42355.0,42353.0,0.49183714]
[1641767645235,0.00654714,42355.0,42353.0,0.49183714]
[1641767645835,0.02354714,42355.0,42353.0,0.49183714]
[1641767647083,0.00654714,42355.0,42353.0,0.49183714]
[1641767647983,0.01854714,42355.0,42353.0,0.49183714]
[1641767649185,0.00654714,42355.0,42353.0,0.49183714]
[1641767650026,0.01754714,42355.0,42353.0,0.49183714]
[1641767651230,0.00654714,42355.0,42353.0,0.49183714]
[1641767652028,0.01754714,42355.0,42353.0,0.49183714]
[1641767653228,0.00654714,42355.0,42353.0,0.49183714]
[1641767653687,0.30062198,42355.0,42353.0,0.49183714]
[1641767653884,0.06754714,42355.0,42353.0,0.49183714]
[1641767654282,0.06254714,42355.0,42353.0,0.49183714]
[1641767654882,0.01754714,42355.0,42353.0,0.49183714]
[1641767655383,0.00654714,42355.0,42353.0,0.49183714]
[1641767655981,0.01754714,42355.0,42353.0,0.49183714]
[1641767657083,0.00654714,42355.0,42353.0,0.49183714]
[1641767657926,0.01754714,42355.0,42353.0,0.49183714]
[1641767659227,0.00654714,42355.0,42353.0,0.49183714]
[1641767660129,0.01754714,42355.0,42353.0,0.49183714]
[1641767661185,0.00654714,42355.0,42353.0,0.49183714]
[1641767661984,0.01854714,42355.0,42353.0,0.49183714]
[1641767663587,0.00654714,42355.0,42353.0,0.49183714]
[1641767663989,0.01954714,42355.0,42353.0,0.55086114]
[1641767665235,0.00654714,42355.0,42353.0,0.55086114]
[1641767666036,0.02454714,42355.0,42353.0,0.55086114]
[1641767667036,0.00654714,42354.0,42353.0,0.55086114]
[1641767668035,0.02754714,42354.0,42353.0,0.55086114]
[1641767668684,0.021,42354.0,42353.0,0.84648631]
[1641767669184,0.00654714,42354.0,42353.0,0.84648631]
[1641767669785,0.00127494,42360.0,42353.0,0.84648631]
[1641767669986,0.04254714,42354.0,42353.0,0.84648631]
[1641767670188,0.036,42354.0,42353.0,0.84648631]
[1641767671189,0.00654714,42357.0,42353.0,0.55086114]
[1641767671389,0.00654714,42357.0,42353.0,0.6098807]
[1641767672529,0.00654714,42359.0,42353.0,0.49183714]
[1641767672728,0.00654714,42359.0,42356.0,0.059017]
[1641767676901,0.00654714,42359.0,42356.0,0.11803253]
[1641767678404,0.00530714,42359.0,42356.0,0.11803253]
[1641767678606,0.07868361,42366.0,42356.0,0.11803253]
[1641767678807,2.93807125,42367.0,42358.0,0.059016]
[1641767679005,2.9223246,42367.0,42358.0,0.059016]
[1641767679304,0.07120613,42366.0,42358.0,0.059016]
[1641767680033,2.66933073,42367.0,42358.0,0.059016]
[1641767680237,2.76933073,42367.0,42358.0,0.059016]
[1641767681637,2.76933073,42367.0,42355.0,0.118027]
[1641767683038,2.76933073,42367.0,42355.0,0.17704261]
[1641767683439,2.76933073,42367.0,42355.0,0.118027]
[1641767683681,0.047,42366.0,42355.0,0.118027]
[1641767683880,0.047,42365.0,42355.0,0.118027]
[1641767684080,0.047,42364.0,42355.0,0.17704258]
[1641767684482,0.047,42364.0,42358.0,0.059017]
[1641767685282,0.047,42364.0,42355.0,0.118027]
[1641767685882,0.047,42364.0,42358.0,0.05901222]
[1641767686687,0.047,42364.0,42355.0,0.118027]
[1641767687287,0.047,42364.0,42358.0,0.05901209]
[1641767688132,0.047,42364.0,42359.0,0.059015]
[1641767692885,0.7,42363.0,42356.0,0.00126346]
[1641767694085,0.7,42363.0,42359.0,0.059015]
[1641767701082,0.7,42363.0,42355.0,0.17704013]
[1641767701083,0.23918222,42362.0,42355.0,0.118027]
[1641767701288,0.23918222,42362.0,42353.0,0.91183714]
[1641767704035,0.35218222,42362.0,42353.0,0.91183714]
[1641767704434,0.45218222,42362.0,42353.0,0.91183714]
[1641767705841,0.33918222,42362.0,42353.0,0.91183714]
[1641767706179,0.44918222,42362.0,42353.0,0.91183714]
[1641767707380,0.38618222,42362.0,42353.0,0.91183714]
[1641767708182,0.44218222,42362.0,42353.0,0.91183714]
[1641767709185,0.203,42362.0,42353.0,0.91183714]
[1641767709483,0.35370227,42362.0,42353.0,0.91183714]
[1641767709682,0.147,42362.0,42353.0,0.91183714]
[1641767709931,0.35917196,42362.0,42354.0,0.059019]
[1641767710128,0.41417196,42362.0,42354.0,0.059019]
[1641767710932,0.41417196,42362.0,42353.0,0.91183714]
[1641767711332,0.35917196,42362.0,42353.0,0.91183714]
[1641767711530,0.25917196,42362.0,42353.0,0.91183714]
[1641767711730,0.35917196,42362.0,42353.0,0.91183714]
[1641767711931,0.40917196,42362.0,42353.0,0.91183714]
[1641767712131,0.46417196,42362.0,42353.0,0.91183714]
[1641767713133,0.51417196,42362.0,42353.0,0.91183714]
[1641767713332,0.45917196,42362.0,42353.0,0.91183714]
[1641767714090,0.51017196,42362.0,42353.0,0.91183714]
[1641767715289,0.45917196,42362.0,42353.0,0.91183714]
[1641767716091,0.47717196,42362.0,42353.0,0.91183714]
[1641767716295,0.75,42358.0,42346.0,0.11837077]
[1641767716494,0.00129357,42349.0,42340.0,0.00044]
[1641767716690,1.249,42347.0,42340.0,0.00044]
[1641767716892,0.28213214,42346.0,42340.0,0.00044]
[1641767717090,0.33213214,42346.0,42340.0,0.00044]
[1641767717454,0.33213214,42346.0,42341.0,0.00011]
[1641767717455,1.299,42345.0,42341.0,0.00011]
[1641767717655,0.75668658,42339.0,42336.0,0.00044]
[1641767718054,0.85668658,42339.0,42336.0,0.00044]
[1641767718655,0.97599861,42339.0,42336.0,0.00044]
[1641767718860,0.97599861,42339.0,42332.0,0.02033]
[1641767719056,0.96456048,42338.0,42332.0,0.01286]
[1641767720156,0.97656048,42338.0,42332.0,0.01286]
[1641767720956,0.97656048,42338.0,42333.0,0.00011152]
[1641767721394,0.96456048,42338.0,42333.0,0.00011152]
[1641767721590,1.06456048,42338.0,42333.0,0.00011152]
[1641767721990,1.06456048,42338.0,42332.0,0.01286]
[1641767722190,0.98456048,42338.0,42333.0,0.00021348]
[1641767723192,0.98456048,42338.0,42333.0,0.0002097]
[1641767723391,0.96456048,42338.0,42333.0,0.0002097]
[1641767723592,0.96394911,42338.0,42333.0,0.0002097]
[1641767724192,0.98294911,42338.0,42332.0,0.01286]
[1641767724396,0.98294911,42338.0,42333.0,0.0002097]
[1641767724794,0.88294911,42338.0,42333.0,0.0002097]
[1641767725034,0.98294911,42338.0,42333.0,0.0002097]
[1641767725434,0.95894911,42338.0,42333.0,0.00020563]
[1641767726034,0.97794911,42338.0,42333.0,0.00020563]
[1641767726337,0.97794911,42338.0,42332.0,0.01286]
[1641767726539,0.97794911,42338.0,42333.0,0.00020563]
[1641767727335,0.95894911,42338.0,42333.0,0.00020563]
[1641767727535,0.95894911,42338.0,42332.0,0.01286]
[1641767727739,0.95894911,42338.0,42333.0,0.00020577]
[1641767728036,0.97394911,42338.0,42333.0,0.00020577]
[1641767729279,0.95894911,42338.0,42333.0,0.00020577]
[1641767729480,0.85894911,42338.0,42333.0,0.00020577]
[1641767729680,0.85894911,42338.0,42332.0,0.01286]
[1641767729880,0.85894911,42338.0,42333.0,0.00020585]
[1641767730080,0.98094911,42338.0,42333.0,0.00020585]
[1641767730786,0.98094911,42338.0,42332.0,0.01286]
[1641767730980,0.98094911,42338.0,42333.0,0.00020585]
[1641767731481,0.95894911,42338.0,42333.0,0.00020585]
[1641767731686,0.04137633,42341.0,42333.0,0.00020585]
[1641767731882,0.0359946,42349.0,42332.0,0.01286]
[1641767731883,0.047,42346.0,42332.0,0.01286]
[1641767732084,0.016,42338.0,42335.0,0.00127822]
[1641767733431,0.00018974,42341.0,42335.0,0.00127822]
[1641767734237,0.023,42341.0,42336.0,0.00020584]
[1641767734435,0.02318975,42341.0,42336.0,0.00020584]
[1641767735432,0.00018976,42341.0,42336.0,0.00020583]
[1641767735636,0.7,42340.0,42332.0,0.00806583]
[1641767736284,0.716,42340.0,42332.0,0.00806583]
[1641767737285,0.7,42340.0,42332.0,0.00806583]
[1641767737686,0.8,42340.0,42332.0,0.00806583]
[1641767737890,0.21145796,42339.0,42332.0,0.00806583]
[1641767738088,0.82,42340.0,42332.0,0.00806583]
[1641767738686,0.82,42340.0,42334.0,0.00011101]
[1641767739088,0.20827045,42339.0,42334.0,0.00011101]
[1641767739787,0.20827045,42339.0,42334.0,0.00021348]
[1641767740235,0.22327045,42339.0,42334.0,0.00021348]
[1641767740636,1.47227045,42339.0,42334.0,0.00021348]
[1641767740839,1.57227045,42339.0,42334.0,0.00021348]
[1641767741238,0.32327045,42339.0,42334.0,0.00021348]
[1641767741442,0.30827045,42339.0,42334.0,0.00021348]
[1641767741838,0.30827045,42339.0,42332.0,0.00806583]
[1641767742046,0.21427464,42338.0,42334.0,0.00021348]
[1641767743040,0.21427464,42338.0,42334.0,0.00020934]
[1641767743540,0.1,42339.0,42334.0,0.00020934]
[1641767743788,0.23217765,42338.0,42334.0,0.00020934]
[1641767743987,0.23217765,42338.0,42332.0,0.00806583]
[1641767744191,0.113,42339.0,42334.0,0.00020556]
[1641767744387,0.22033488,42338.0,42334.0,0.00020556]
[1641767745191,0.22033488,42338.0,42334.0,0.00020555]
[1641767745390,0.7,42337.0,42332.0,0.00327138]
[1641767745594,0.8,42337.0,42332.0,0.00327138]
[1641767745793,0.85,42337.0,42332.0,0.00327138]
[1641767745993,0.8,42337.0,42332.0,0.00327138]
[1641767746193,0.815,42337.0,42332.0,0.00327138]
[1641767747442,0.8,42337.0,42332.0,0.00327138]
[1641767747640,0.65,42336.0,42321.0,1.25289823]
[1641767747839,0.65,42336.0,42323.0,0.0012222]
[1641767747840,0.23291962,42335.0,42323.0,0.0012222]
[1641767748639,0.23291962,42335.0,42327.0,0.0002135]
[1641767749743,0.23291962,42335.0,42329.0,0.00021349]
[1641767750141,0.25191962,42335.0,42329.0,0.00021349]
[1641767750542,0.00126314,42332.0,42329.0,0.00021349]
[1641767750740,0.00126314,42332.0,42330.0,0.00021349]
[1641767751787,0.00126314,42332.0,42329.0,0.00021349]
[1641767751991,0.05,42334.0,42329.0,0.00021349]
[1641767752185,0.017,42332.0,42329.0,0.00021349]
[1641767752785,0.017,42332.0,42325.0,0.059057]
[1641767752986,0.017,42332.0,42328.0,0.00020555]
[1641767753485,0.05,42334.0,42328.0,0.00020555]
[1641767753986,0.75,42334.0,42329.0,0.00020571]
[1641767754186,0.87,42334.0,42329.0,0.00020571]
[1641767755036,0.87,42334.0,42325.0,0.05426255]
[1641767755236,0.87,42334.0,42325.0,0.04951478]
[1641767755433,0.85,42334.0,42325.0,0.04951478]
[1641767756235,0.871,42334.0,42325.0,0.04951478]
[1641767757338,0.00010284,42333.0,42325.0,0.04951478]
[1641767758237,0.02010284,42333.0,42325.0,0.04951478]
[1641767758539,0.00019819,42333.0,42326.0,0.0002135]
[1641767759383,0.2548812,42336.0,42325.0,0.04951478]
[1641767759583,0.2548812,42336.0,42325.0,0.04451478]
[1641767760187,0.067,42336.0,42325.0,0.04451478]
[1641767760385,0.117,42336.0,42325.0,0.04451478]
[1641767760682,0.067,42336.0,42325.0,0.04451478]
[1641767761385,0.047,42336.0,42325.0,0.04451478]
[1641767761585,0.047,42336.0,42327.0,0.5354905]
[1641767761784,0.00010284,42335.0,42327.0,0.5354905]
[1641767761984,0.04710284,42335.0,42327.0,0.5354905]
[1641767762839,0.20879732,42334.0,42328.0,0.0002135]
[1641767763035,0.20879732,42334.0,42327.0,0.530704]
[1641767763036,0.7,42333.0,42327.0,0.530704]
[1641767763439,0.85,42333.0,42327.0,0.530704]
[1641767764237,0.869,42333.0,42327.0,0.530704]
[1641767765440,0.85,42333.0,42327.0,0.530704]
[1641767766284,0.00020226,42332.0,42327.0,0.530704]
[1641767767186,1.368,42333.0,42327.0,0.530704]
[1641767767485,0.00020226,42332.0,42327.0,0.530704]
[1641767768186,0.02020226,42332.0,42327.0,0.530704]
[1641767768387,0.02020231,42332.0,42327.0,0.530704]
[1641767769486,0.00020231,42332.0,42327.0,0.530704]
[1641767770135,0.02020231,42332.0,42327.0,0.530704]
[1641767770539,0.02019085,42332.0,42327.0,0.530704]
[1641767771435,0.00019085,42332.0,42327.0,0.530704]
[1641767771636,0.65,42333.0,42327.0,0.530704]
[1641767771836,0.00019085,42332.0,42327.0,0.589757]
[1641767772436,0.00019085,42332.0,42327.0,0.530704]
[1641767772636,0.669,42333.0,42327.0,0.530704]
[1641767772837,0.00019078,42332.0,42327.0,0.530704]
[1641767773784,0.65,42333.0,42327.0,0.530704]
[1641767773984,0.00019078,42332.0,42327.0,0.525704]
[1641767774185,0.01819078,42332.0,42327.0,0.525704]
[1641767774686,0.51819078,42332.0,42327.0,0.525704]
[1641767774886,0.618,42332.0,42327.0,0.525704]
[1641767775089,0.61929743,42332.0,42327.0,0.525704]
[1641767775486,0.60129743,42332.0,42327.0,0.525704]
[1641767776288,0.62029743,42332.0,42327.0,0.525704]
[1641767777088,0.620106,42332.0,42327.0,0.525704]
[1641767777287,0.62029743,42332.0,42327.0,0.525704]
[1641767777536,0.60129743,42332.0,42327.0,0.525704]
[1641767778238,0.62029743,42332.0,42327.0,0.525704]
[1641767779235,0.620106,42332.0,42327.0,0.525704]
[1641767779435,0.6012974,42332.0,42327.0,0.525704]
[1641767780239,0.6202974,42332.0,42327.0,0.525704]
[1641767781489,0.601106,42332.0,42327.0,0.525704]
[1641767781691,0.6012974,42332.0,42327.0,0.525704]
[1641767781889,1.1012974,42332.0,42327.0,0.525704]
[1641767782290,1.1202974,42332.0,42327.0,0.525704]
[1641767782492,0.9702974,42332.0,42327.0,0.525704]
[1641767782692,0.9702974,42332.0,42329.0,0.00122623]
[1641767782693,0.97029739,42332.0,42329.0,0.00122623]
[1641767783290,0.87029739,42332.0,42329.0,0.00122623]
[1641767783495,0.22249739,42332.0,42330.0,0.0733378]
[1641767783692,0.001106,42332.0,42331.0,0.383871]
[1641767783892,0.001106,42332.0,42331.0,0.38510031]
[1641767784089,0.001106,42332.0,42331.0,0.43510031]
[1641767784290,0.001106,42332.0,42331.0,0.44510031]
[1641767784947,0.001106,42332.0,42331.0,0.69679216]
[1641767785548,0.001106,42332.0,42331.0,0.68679216]
[1641767786351,0.001106,42332.0,42331.0,0.69779216]
[1641767787751,0.001106,42332.0,42331.0,0.68679216]
[1641767788352,0.001106,42332.0,42331.0,0.69779216]
[1641767789189,0.001106,42332.0,42331.0,0.69402149]
[1641767789789,0.001106,42332.0,42331.0,0.68302149]
[1641767790389,0.001106,42332.0,42331.0,0.84402149]
[1641767791088,0.001106,42332.0,42331.0,0.69402149]
[1641767791487,0.001106,42332.0,42331.0,0.68302149]
[1641767792289,0.001106,42332.0,42331.0,0.69402149]
[1641767793340,0.001106,42332.0,42331.0,0.79402149]
[1641767793540,0.001106,42332.0,42331.0,0.83302149]
[1641767793742,0.001106,42332.0,42331.0,0.78302149]
[1641767794341,0.001106,42332.0,42331.0,0.84502149]
[1641767794942,0.001106,42332.0,42331.0,0.94502148]
[1641767795142,0.001106,42332.0,42331.0,0.84502149]
[1641767795543,0.001106,42332.0,42331.0,0.83302149]
[1641767796389,0.001106,42332.0,42331.0,0.84502149]
[1641767797592,0.001106,42332.0,42331.0,0.83302149]
[1641767798292,0.001106,42332.0,42331.0,0.84802149]
[1641767799492,0.001106,42332.0,42331.0,0.83302149]
[1641767800344,0.001106,42332.0,42331.0,0.84802149]
[1641767801548,0.001106,42332.0,42331.0,0.83302149]
[1641767802347,0.001106,42332.0,42331.0,0.84802149]
[1641767803552,0.001106,42332.0,42331.0,0.83302149]
[1641767803790,0.001106,42332.0,42331.0,0.58132964]
[1641767804397,0.001106,42332.0,42331.0,0.59632964]
[1641767805593,0.001106,42332.0,42331.0,0.58132964]
[1641767805796,0.001106,42332.0,42331.0,0.82799428]
[1641767805993,0.001106,42332.0,42331.0,1.24799428]
[1641767806195,0.001106,42332.0,42331.0,1.00132964]
[1641767806394,0.001106,42332.0,42331.0,1.01732964]
[1641767807638,0.001106,42332.0,42331.0,1.00132964]
[1641767808238,0.001106,42332.0,42331.0,1.01732964]
[1641767809544,0.001106,42332.0,42331.0,1.00132964]
[1641767810240,0.001106,42332.0,42331.0,1.01632964]
[1641767811488,0.001106,42332.0,42331.0,1.00132964]
[1641767812390,0.001106,42332.0,42331.0,1.01632964]
[1641767813592,0.001106,42332.0,42331.0,1.00132964]
[1641767814292,0.001106,42332.0,42331.0,1.01632964]
[1641767815549,0.001106,42332.0,42331.0,1.00132964]
[1641767816347,0.001106,42332.0,42331.0,1.01632964]
[1641767817548,0.001106,42332.0,42331.0,1.00132964]
[1641767818349,0.001106,42332.0,42331.0,1.01932964]
[1641767818994,0.001106,42332.0,42331.0,0.96932964]
[1641767819195,0.001106,42332.0,42331.0,0.82310033]
[1641767819396,0.001106,42332.0,42331.0,1.0634808]
[1641767819597,0.001106,42332.0,42331.0,1.0454808]
[1641767820496,0.001106,42332.0,42331.0,1.1624808]
[1641767820697,0.001106,42332.0,42331.0,1.2624808]
[1641767820896,0.498106,42333.0,42332.0,0.7]
[1641767821098,0.498106,42333.0,42332.0,1.503871]
[1641767821498,0.498106,42333.0,42332.0,1.603871]
[1641767822297,0.498106,42333.0,42332.0,1.619871]
[1641767823643,0.498106,42333.0,42332.0,1.603871]
[1641767824443,0.498106,42333.0,42332.0,1.619871]
[1641767824645,0.473106,42333.0,42332.0,1.619871]
[1641767825344,1e-06,42333.0,42332.0,1.619871]
[1641767825545,1e-06,42333.0,42332.0,1.603871]
[1641767825944,0.3123,42346.0,42336.0,0.017707]
[1641767826189,0.3123,42346.0,42341.0,0.059022]
[1641767826391,0.00125964,42350.0,42341.0,0.059022]
[1641767827694,0.24282337,42351.0,42341.0,0.059022]
[1641767827891,0.00010292,42347.0,42341.0,0.059022]
[1641767828094,0.00010292,42347.0,42343.0,0.05902068]
[1641767828295,0.00010292,42347.0,42345.0,0.059018]
[1641767828895,0.24282337,42351.0,42345.0,0.059018]
[1641767828896,0.42010292,42348.0,42345.0,0.059018]
[1641767829296,0.42010292,42348.0,42345.0,0.11803627]
[1641767830141,0.42,42348.0,42344.0,0.16504827]
[1641767830442,0.42,42348.0,42345.0,0.011]
[1641767831040,0.42,42348.0,42345.0,0.12903627]
[1641767831640,0.42,42348.0,42345.0,0.059018]
[1641767832440,0.42,42348.0,42345.0,0.070018]
[1641767833694,0.42,42348.0,42345.0,0.059018]
[1641767834399,0.42,42348.0,42345.0,0.068018]
[1641767835397,0.42,42348.0,42345.0,0.12703594]
[1641767835599,0.42,42348.0,42345.0,0.11803594]
[1641767836397,0.42,42348.0,42345.0,0.13203594]
[1641767837640,0.42,42348.0,42345.0,0.11803594]
[1641767838042,0.42,42348.0,42345.0,0.059018]
[1641767838441,0.42,42348.0,42345.0,0.071018]
[1641767839644,0.42,42348.0,42345.0,0.11803567]
[1641767840343,0.42,42348.0,42345.0,0.12903567]
[1641767841794,0.42,42348.0,42345.0,0.11803567]
[1641767842493,0.42,42348.0,42345.0,0.13103567]
[1641767843694,0.42,42348.0,42345.0,0.11803567]
[1641767844497,0.42,42348.0,42345.0,0.13203567]
[1641767845743,0.42,42348.0,42345.0,0.11803567]
[1641767846243,0.00018737,42349.0,42345.0,0.11803567]
[1641767846443,0.00018757,42349.0,42345.0,0.13203567]
[1641767846643,0.00018757,42349.0,42348.0,0.11802424]
[1641767846846,0.00018757,42349.0,42348.0,0.16802424]
[1641767847445,0.42,42352.0,42348.0,0.16802424]
[1641767847644,0.00019128,42351.0,42348.0,0.16802424]
[1641767848445,0.00019128,42351.0,42348.0,0.17902424]
[1641767848698,0.42019128,42352.0,42348.0,0.17902424]
[1641767849695,0.42,42352.0,42348.0,0.120012]
[1641767849894,0.42019128,42352.0,42348.0,0.120012]